fUSD/lending_fUSD_20240503
["ID","MTS","AMOUNT","RATE_DAILY","PERIOD"]
[325345298,1714745468179,-1511.45,0.00044109,31]
[325345299,1714745468188,-500.0,0.00044109,31]
[325345300,1714745468197,-500.0,0.00044109,31]
[325345301,1714745468206,-500.0,0.00044109,31]
[325345302,1714745468216,-500.0,0.00044109,31]
[325345303,1714745468225,-1159.25,0.00044109,31]
[325345304,1714745468234,-500.0,0.00044109,31]
[325345305,1714745468244,-917.38,0.00044109,31]
[325345306,1714745468253,-500.0,0.00044109,31]
[325345307,1714745468263,-500.0,0.00044109,31]
[325345308,1714745468272,-1596.25,0.00044109,31]
[325345309,1714745468281,-500.0,0.00044109,31]
[325345310,1714745468291,-1176.24,0.00044109,31]
[325345311,1714745468300,-500.0,0.00044109,31]
[325345312,1714745468310,-500.0,0.00044109,31]
[325345313,1714745468319,-2039.55,0.00044109,31]
[325345314,1714745468328,-1905.45,0.00044109,31]
[325345315,1714745468337,-1519.72,0.00044109,31]
[325345316,1714745468347,-500.0,0.00044109,31]
[325345317,1714745468356,-1396.44,0.00044109,31]
[325345318,1714745468366,-500.0,0.00044109,31]
[325345319,1714745468378,-954.51,0.00044109,31]
[325345320,1714745468388,-500.0,0.00044109,31]
[325345321,1714745468514,-2521.54,0.00044109,31]
[325345322,1714745468525,-1072.91,0.00044109,31]
[325345323,1714745468535,-2363.34,0.00044109,31]
[325345324,1714745468544,-500.0,0.00044109,31]
[325345325,1714745468553,-1288.12,0.00044109,31]
[325345326,1714745468563,-500.0,0.00044109,31]
[325345327,1714745468573,-1152.92,0.00044109,31]
[325345328,1714745468582,-500.0,0.00044109,31]
[325345329,1714745468592,-500.0,0.00044109,31]
[325345330,1714745468601,-500.0,0.00044109,31]
[325345331,1714745468611,-501.08735078,0.00044109,31]
[325345332,1714745468621,-824.65,0.00044109,31]
[325345333,1714745468639,-500.0,0.00044109,31]
[325345334,1714745468650,-500.0,0.00044109,31]
[325345335,1714745468660,-500.0,0.00044109,31]
[325345336,1714745468670,-2569.44,0.00044109,31]
[325345337,1714745468679,-1708.73,0.00044109,31]
[325345338,1714745468689,-500.0,0.00044109,31]
[325345339,1714745468699,-458.80915707,0.00044109,31]
[325345340,1714745468708,-2038.64,0.00044109,31]
[325345341,1714745468718,-237.7646002,0.00044109,31]
[325345342,1714745468728,-500.0,0.00044109,31]
[325345343,1714745468737,-500.0,0.00044109,31]
[325345344,1714745468747,-500.0,0.00044109,31]
[325345345,1714745468757,-500.0,0.00044109,31]
[325345346,1714745468767,-500.0,0.00044109,31]
[325345347,1714745468777,-177.2663695,0.00044109,31]
[325345348,1714745468787,-500.0,0.00044109,31]
[325345349,1714745468797,-500.0,0.00044109,31]
[325345350,1714745468807,-500.0,0.00044109,31]
[325345351,1714745468816,-500.0,0.00044109,31]
[325345352,1714745468826,-500.0,0.00044109,31]
[325345353,1714745468835,-525.13142958,0.00044109,31]
[325345354,1714745468846,-1554.4,0.00044109,31]
[325345355,1714745468855,-505.55439131,0.00044109,31]
[325345356,1714745468867,-1491.81,0.00044109,31]
[325345357,1714745468879,-2118.2,0.00044109,31]
[325345358,1714745468889,-500.0,0.00044109,31]
[325345359,1714745468898,-1726.11,0.00044109,31]
[325345360,1714745468910,-500.0,0.00044109,31]
[325345361,1714745468920,-500.0,0.00044109,31]
[325345362,1714745468931,-500.0,0.00044109,31]
[325345363,1714745468941,-504.81,0.00044109,31]
[325345364,1714745468953,-586.98,0.00044109,31]
[325345365,1714745468965,-1837.48,0.00044109,31]
[325345366,1714745468976,-500.0,0.00044109,31]
[325345367,1714745468988,-500.0,0.00044109,31]
[325345368,1714745468999,-2353.26,0.00044109,31]
[325345369,1714745469008,-2197.62,0.00044109,31]
[325345370,1714745469019,-1217.34,0.00044109,31]
[325345371,1714745469028,-500.0,0.00044109,31]
[325345372,1714745469038,-920.29,0.00044109,31]
[325345373,1714745469048,-995.69,0.00044109,31]
[325345374,1714745469057,-500.0,0.00044109,31]
[325345375,1714745469067,-3090.42,0.00044109,31]
[325345376,1714745469077,-500.0,0.00044109,31]
[325345377,1714745469087,-500.0,0.00044109,31]
[325345378,1714745469097,-500.0,0.00044109,31]
[325345379,1714745469107,-1363.69,0.00044109,31]
[325345380,1714745469117,-765.12,0.00044109,31]
[325345381,1714745469129,-1189.51,0.00044109,31]
[325345382,1714745469138,-500.0,0.00044109,31]
[325345383,1714745469148,-570.15485667,0.00044109,31]
[325345384,1714745469157,-1321.06,0.00044109,31]
[325345385,1714745469167,-933.99,0.00044109,31]
[325345386,1714745469178,-508.33179552,0.00044109,31]
[325345387,1714745469188,-2014.01,0.00044109,31]
[325345388,1714745469198,-1368.98,0.00044109,31]
[325345389,1714745469208,-501.80069376,0.00044109,31]
[325345390,1714745469218,-2195.06,0.00044109,31]
[325345391,1714745469227,-3574.31,0.00044109,31]
[325345392,1714745469237,-1996.66,0.00044109,31]
[325345393,1714745469246,-500.0,0.00044109,31]
[325345394,1714745469256,-500.0,0.00044109,31]
[325345395,1714745469266,-532.4,0.00044109,31]
[325345396,1714745469277,-593.89,0.00044109,31]
[325345397,1714745469286,-500.0,0.00044109,31]
[325345398,1714745469295,-1632.1,0.00044109,31]
[325345399,1714745469305,-500.0,0.00044109,31]
[325345400,1714745469314,-500.0,0.00044109,31]
[325345401,1714745469324,-660.38,0.00044109,31]
[325345402,1714745469333,-500.0,0.00044109,31]
[325345403,1714745469343,-3305.31,0.00044109,31]
[325345404,1714745469352,-500.0,0.00044109,31]
[325345405,1714745469362,-500.0,0.00044109,31]
[325345406,1714745469371,-500.0,0.00044109,31]
[325345407,1714745469385,-680.64,0.00044109,31]
[325345408,1714745469395,-746.35,0.00044109,31]
[325345409,1714745469404,-500.0,0.00044109,31]
[325345410,1714745469413,-2645.49,0.00044109,31]
[325345411,1714745469422,-500.0,0.00044109,31]
[325345412,1714745469431,-665.55,0.00044109,31]
[325345413,1714745469441,-500.0,0.00044109,31]
[325345414,1714745469450,-560.6910974,0.00044109,31]
[325345415,1714745469459,-500.0,0.00044109,31]
[325345416,1714745469468,-500.0,0.00044109,31]
[325345417,1714745469478,-500.0,0.00044109,31]
[325345418,1714745469487,-500.0,0.00044109,31]
[325345419,1714745469497,-500.0,0.00044109,31]
[325345420,1714745469506,-500.0,0.00044109,31]
[325345421,1714745469516,-500.0,0.00044109,31]
[325345422,1714745469526,-1345.61,0.00044109,31]
[325345423,1714745469535,-1498.44,0.00044109,31]
[325345424,1714745469545,-2889.01,0.00044109,31]
[325345425,1714745469554,-500.0,0.00044109,31]
[325345426,1714745469564,-627.15,0.00044109,31]
[325345427,1714745469573,-3469.96,0.00044109,31]
[325345428,1714745469583,-500.0,0.00044109,2]
[325345429,1714745469593,-644.97,0.00044109,31]
[325345430,1714745469602,-636.13146455,0.00044109,31]
[325345431,1714745469612,-765.59,0.00044109,31]
[325345432,1714745469622,-1329.31,0.00044109,31]
[325345433,1714745469635,-1198.34,0.00044109,31]
[325345434,1714745469645,-500.0,0.00044109,31]
[325345435,1714745469655,-1341.97,0.00044109,31]
[325345436,1714745469665,-500.0,0.00044109,31]
[325345437,1714745469675,-500.0,0.00044109,31]
[325345438,1714745469685,-500.0,0.00044109,31]
[325345439,1714745469694,-1178.14,0.00044109,31]
[325345440,1714745469704,-692.83,0.00044109,31]
[325345441,1714745469714,-2488.33,0.00044109,31]
[325345442,1714745469724,-2978.33,0.00044109,31]
[325345443,1714745469736,-506.1,0.00044109,31]
[325345444,1714745469747,-707.23,0.00044109,31]
[325345445,1714745469757,-500.0,0.00044109,31]
[325345446,1714745469767,-2686.59,0.00044109,31]
[325345447,1714745469777,-500.0,0.00044109,120]
[325345448,1714745469786,-1502.41,0.00044109,31]
[325345449,1714745469796,-500.0,0.00044109,31]
[325345450,1714745469806,-637.58,0.00044109,31]
[325345451,1714745469816,-500.0,0.00044109,31]
[325345452,1714745469826,-500.0,0.00044109,31]
[325345453,1714745469836,-559.63,0.00044109,31]
[325345454,1714745469845,-1397.23,0.00044109,31]
[325345455,1714745469855,-500.0,0.00044109,31]
[325345456,1714745469866,-1235.73,0.00044109,31]
[325345457,1714745469875,-500.0,0.00044109,2]
[325345458,1714745469886,-1500.0,0.00044109,31]
[325345459,1714745469897,-500.0,0.00044109,31]
[325345460,1714745469908,-500.0,0.00044109,31]
[325345461,1714745469919,-1257.13,0.00044109,31]
[325345462,1714745469928,-1087.71,0.00044109,31]
[325345463,1714745469938,-2002.73,0.00044109,31]
[325345464,1714745469948,-500.0,0.00044109,31]
[325345465,1714745469958,-500.0,0.00044109,31]
[325345466,1714745469967,-500.0,0.00044109,31]
[325345467,1714745469977,-500.0,0.00044109,31]
[325345468,1714745469988,-677.02,0.00044109,31]
[325345469,1714745469999,-301.79681702,0.00044109,31]
[325345470,1714745470010,-500.0,0.00044109,31]
[325345471,1714745470020,-827.67,0.00044109,31]
[325345472,1714745470031,-500.0,0.00044109,31]
[325345473,1714745470040,-500.0,0.00044109,31]
[325345474,1714745470051,-500.0,0.00044109,31]
[325345475,1714745470061,-764.95,0.00044109,31]
[325345476,1714745470071,-872.6,0.00044109,31]
[325345477,1714745470081,-1386.34,0.00044109,31]
[325345478,1714745470091,-1253.58,0.00044109,31]
[325345479,1714745470102,-2104.1,0.00044109,31]
[325345480,1714745470112,-500.0,0.00044109,31]
[325345481,1714745470122,-500.0,0.00044109,31]
[325345482,1714745470134,-503.84189446,0.00044109,31]
[325345483,1714745470144,-306.69558865,0.00044109,31]
[325345484,1714745470154,-509.72,0.00044109,31]
[325345485,1714745470164,-2395.26,0.00044109,31]
[325345486,1714745470173,-500.0,0.00044109,31]
[325345487,1714745470183,-500.0,0.00044109,31]
[325345488,1714745470193,-891.59,0.00044109,31]
[325345489,1714745470203,-1142.95,0.00044109,31]
[325345490,1714745470212,-500.0,0.00044109,31]
[325345491,1714745470222,-500.0,0.00044109,31]
[325345492,1714745470232,-500.0,0.00044109,31]
[325345493,1714745470241,-2967.93,0.00044109,10]
[325345494,1714745470251,-500.0,0.00044109,31]
[325345495,1714745470261,-500.0,0.00044109,31]
[325345496,1714745470271,-500.0,0.00044109,31]
[325345497,1714745470281,-500.0,0.00044109,31]
[325345498,1714745470291,-500.0,0.00044109,31]
[325345499,1714745470301,-277.541708,0.00044109,14]
[325345500,1714745470311,-500.0,0.00044109,31]
[325345501,1714745470321,-972.8,0.00044109,31]
[325345502,1714745470331,-500.78460278,0.00044109,31]
[325345503,1714745470341,-1305.43,0.00044109,31]
[325345504,1714745470350,-500.0,0.00044109,31]
[325345505,1714745470361,-477.770856,0.00044109,14]
[325345506,1714745470371,-985.04,0.00044109,31]
[325345507,1714745470383,-609.58,0.00044109,31]
[325345508,1714745470392,-588.68,0.00044109,31]
[325345509,1714745470402,-500.0,0.00044109,31]
[325345510,1714745470412,-277.541708,0.00044109,14]
[325345511,1714745470421,-151.0,0.00044109,14]
[325345512,1714745470432,-1654.89,0.00044109,31]
[325345513,1714745470442,-1659.53,0.00044109,31]
[325345514,1714745470452,-477.770856,0.00044109,14]
[325345515,1714745470462,-661.27,0.00044109,31]
[325345516,1714745470472,-524.4570707,0.00044109,31]
[325345517,1714745470482,-500.0,0.00044109,31]
[325345518,1714745470492,-1600.22,0.00044109,31]
[325345519,1714745470502,-182.460383,0.00044109,14]
[325345520,1714745470512,-1243.91,0.00044109,31]
[325345521,1714745470522,-500.0,0.00044109,31]
[325345522,1714745470532,-151.0,0.00044109,14]
[325345523,1714745470542,-500.0,0.00044109,31]
[325345524,1714745470552,-1667.54,0.00044109,31]
[325345525,1714745470562,-500.0,0.00044109,31]
[325345526,1714745470572,-500.0,0.00044109,31]
[325345527,1714745470582,-500.0,0.00044109,31]
[325345528,1714745470592,-500.0,0.00044109,31]
[325345529,1714745470603,-941.31,0.00044109,31]
[325345530,1714745470612,-1427.15,0.00044109,31]
[325345531,1714745470622,-500.0,0.00044109,31]
[325345532,1714745470635,-1349.75,0.00044109,31]
[325345533,1714745470644,-500.0,0.00044109,31]
[325345534,1714745470655,-500.0,0.00044109,31]
[325345535,1714745470665,-500.0,0.00044109,31]
[325345536,1714745470675,-532.50255648,0.00044109,31]
[325345537,1714745470686,-500.0,0.00044109,31]
[325345538,1714745470696,-182.460383,0.00044109,14]
[325345539,1714745470705,-1464.06,0.00044109,31]
[325345540,1714745470715,-500.0,0.00044109,31]
[325345541,1714745470725,-595.85,0.00044109,31]
[325345542,1714745470735,-500.0,0.00044109,31]
[325345543,1714745470745,-500.0,0.00044109,31]
[325345544,1714745470756,-3334.35,0.00044109,31]
[325345545,1714745470766,-1000.0,0.00044109,31]
[325345546,1714745470776,-500.0,0.00044109,31]
[325345547,1714745470786,-821.44,0.00044109,31]
[325345548,1714745470796,-151.0,0.00044109,14]
[325345549,1714745470806,-2406.06,0.00044109,31]
[325345550,1714745470816,-1421.54,0.00044109,31]
[325345551,1714745470827,-151.0,0.00044109,14]
[325345552,1714745470837,-500.0,0.00044109,31]
[325345553,1714745470846,-500.0,0.00044109,31]
[325345554,1714745470858,-500.0,0.00044109,31]
[325345555,1714745471250,-820.03,0.00044109,31]
[325345556,1714745471260,-500.0,0.00044109,31]
[325345557,1714745471270,-500.0,0.00044109,31]
[325345558,1714745471279,-151.0,0.00044109,14]
[325345559,1714745471289,-1324.83,0.00044109,31]
[325345560,1714745471299,-1792.13,0.00044109,30]
[325345561,1714745471309,-505.994089,0.00044109,31]
[325345562,1714745471318,-734.99,0.00044109,31]
[325345563,1714745471328,-1598.47,0.00044109,31]
[325345564,1714745471337,-500.0,0.00044109,31]
[325345565,1714745471347,-500.0,0.00044109,31]
[325345566,1714745471357,-1736.14,0.00044109,31]
[325345567,1714745471367,-500.0,0.00044109,31]
[325345568,1714745471377,-500.0,0.00044109,31]
[325345569,1714745471388,-1054.88,0.00044109,31]
[325345570,1714745471398,-500.0,0.00044109,31]
[325345571,1714745471407,-500.0,0.00044109,31]
[325345572,1714745471416,-702.55,0.00044109,31]
[325345573,1714745471426,-500.0,0.00044109,31]
[325345574,1714745471436,-1496.3,0.00044109,31]
[325345575,1714745471445,-2086.65,0.00044109,31]
[325345576,1714745471454,-874.5,0.00044109,31]
[325345577,1714745471464,-1745.87,0.00044109,31]
[325345578,1714745471474,-508.72726769,0.00044109,31]
[325345579,1714745471484,-500.0,0.00044109,31]
[325345580,1714745471494,-500.0,0.00044109,31]
[325345581,1714745471503,-500.0,0.00044109,31]
[325345582,1714745471513,-500.0,0.00044109,31]
[325345583,1714745471522,-1769.55,0.00044109,31]
[325345584,1714745471533,-532.1,0.00044109,31]
[325345585,1714745471542,-500.0,0.00044109,31]
[325345586,1714745471551,-499.24836707,0.00044109,31]
[325345587,1714745471561,-205.2864,0.00044109,14]
[325345588,1714745471571,-674.85,0.00044109,31]
[325345589,1714745471580,-1470.7,0.00044109,31]
[325345590,1714745471590,-500.0,0.00044109,31]
[325345591,1714745471600,-763.14,0.00044109,31]
[325345592,1714745471610,-2005.32,0.00044109,31]
[325345593,1714745471619,-2759.16,0.00044109,31]
[325345594,1714745471630,-500.0,0.00044109,31]
[325345595,1714745471640,-1202.5,0.00044109,31]
[325345596,1714745471650,-1728.37,0.00044109,31]
[325345597,1714745471660,-1897.48,0.00044109,31]
[325345598,1714745471671,-511.28706055,0.00044109,31]
[325345599,1714745471681,-324.85630341,0.00044109,31]
[325345600,1714745471691,-205.2864,0.00044109,14]
[325345601,1714745471701,-596.5,0.00044109,31]
[325345602,1714745471711,-591.73,0.00044109,2]
[325345603,1714745471721,-448.50859653,0.00044109,31]
[325345604,1714745471730,-500.0,0.00044109,31]
[325345605,1714745471740,-500.0,0.00044109,31]
[325345606,1714745471750,-1674.84,0.00044109,31]
[325345607,1714745471760,-500.0,0.00044109,31]
[325345608,1714745471770,-500.0,0.00044109,31]
[325345609,1714745471779,-500.0,0.00044109,31]
[325345610,1714745471788,-500.0,0.00044109,31]
[325345611,1714745471798,-2818.78,0.00044109,31]
[325345612,1714745471807,-509.87,0.00044109,31]
[325345613,1714745471817,-1724.52,0.00044109,31]
[325345614,1714745471827,-652.39,0.00044109,31]
[325345615,1714745471836,-1010.144803,0.00044109,14]
[325345616,1714745471846,-500.0,0.00044109,31]
[325345617,1714745471855,-586.84030445,0.00044109,31]
[325345618,1714745471864,-500.0,0.00044109,31]
[325345619,1714745471875,-500.0,0.00044109,31]
[325345620,1714745471886,-500.0,0.00044109,31]
[325345621,1714745471895,-500.0,0.00044109,31]
[325345622,1714745471905,-500.0,0.00044109,31]
[325345623,1714745471919,-1997.23,0.00044109,31]
[325345624,1714745471928,-500.0,0.00044109,31]
[325345625,1714745471938,-500.0,0.00044109,31]
[325345626,1714745471947,-500.0,0.00044109,31]
[325345627,1714745471958,-1010.144803,0.00044109,14]
[325345628,1714745471967,-884.44,0.00044109,31]
[325345629,1714745471976,-500.0,0.00044109,31]
[325345630,1714745471987,-500.0,0.00044109,31]
[325345631,1714745471996,-1486.29,0.00044109,31]
[325345632,1714745472005,-500.0,0.00044109,31]
[325345633,1714745472015,-500.0,0.00044109,31]
[325345634,1714745472024,-2569.24,0.00044109,31]
[325345635,1714745472035,-1683.44,0.00044109,31]
[325345636,1714745472044,-500.0,0.00044109,31]
[325345637,1714745472054,-1275.91,0.00044109,31]
[325345638,1714745472063,-549.58,0.00044109,31]
[325345639,1714745472073,-500.0,0.00044109,31]
[325345640,1714745472082,-500.0,0.00044109,31]
[325345641,1714745472092,-846.29,0.00044109,31]
[325345642,1714745472102,-500.0,0.00044109,31]
[325345643,1714745472111,-1920.29,0.00044109,31]
[325345644,1714745472121,-497.39688889,0.00044109,31]
[325345645,1714745472131,-744.38,0.00044109,31]
[325345646,1714745472141,-500.0,0.00044109,31]
[325345647,1714745472151,-912.11,0.00044109,31]
[325345648,1714745472161,-506.86,0.00044109,31]
[325345649,1714745472170,-500.0,0.00044109,31]
[325345650,1714745472179,-500.0,0.00044109,31]
[325345651,1714745472189,-500.0,0.00044109,31]
[325345652,1714745472198,-500.0,0.00044109,31]
[325345653,1714745472208,-500.0,0.00044109,31]
[325345654,1714745472217,-500.0,0.00044109,31]
[325345655,1714745472227,-1627.32,0.00044109,31]
[325345656,1714745472237,-717.82,0.00044109,31]
[325345657,1714745472247,-500.0,0.00044109,31]
[325345658,1714745472258,-606.77,0.00044109,31]
[325345659,1714745472268,-180.274431,0.00044109,14]
[325345660,1714745472278,-659.68,0.00044109,31]
[325345661,1714745472288,-505.60683086,0.00044109,31]
[325345662,1714745472299,-500.0,0.00044109,31]
[325345663,1714745472311,-500.0,0.00044109,31]
[325345664,1714745472322,-500.0,0.00044109,31]
[325345665,1714745472332,-505.81510741,0.00044109,31]
[325345666,1714745472344,-500.0,0.00044109,31]
[325345667,1714745472354,-892.82,0.00044109,31]
[325345668,1714745472365,-180.274431,0.00044109,14]
[325345669,1714745472375,-500.0,0.00044109,31]
[325345670,1714745472390,-500.0,0.00044109,31]
[325345671,1714745472400,-2092.28,0.00044109,31]
[325345672,1714745472416,-500.0,0.00044109,31]
[325345673,1714745472427,-500.0,0.00044109,31]
[325345674,1714745472437,-1184.5,0.00044109,31]
[325345675,1714745472448,-500.0,0.00044109,31]
[325345676,1714745472458,-558.51,0.00044109,31]
[325345677,1714745472469,-533.7121079,0.00044109,31]
[325345678,1714745472479,-1488.1,0.00044109,31]
[325345679,1714745472490,-786.45,0.00044109,31]
[325345680,1714745472500,-1836.64,0.00044109,31]
[325345681,1714745472511,-500.0,0.00044109,31]
[325345682,1714745472522,-500.0,0.00044109,31]
[325345683,1714745472533,-234.02,0.00044109,31]
[325345684,1714745472544,-500.0,0.00044109,31]
[325345685,1714745472554,-500.0,0.00044109,31]
[325345686,1714745472565,-1619.36,0.00044109,31]
[325345687,1714745472576,-500.0,0.00044109,31]
[325345688,1714745472587,-848.74,0.00044109,31]
[325345689,1714745472597,-500.0,0.00044109,31]
[325345690,1714745472607,-1589.48,0.00044109,31]
[325345691,1714745472624,-500.0,0.00044109,31]
[325345692,1714745472636,-4505.67,0.00044109,31]
[325345693,1714745472646,-151.0,0.00044109,14]
[325345694,1714745472656,-500.0,0.00044109,31]
[325345695,1714745472666,-500.0,0.00044109,31]
[325345696,1714745472675,-500.0,0.00044109,31]
[325345697,1714745472685,-500.0,0.00044109,31]
[325345698,1714745472695,-500.0,0.00044109,31]
[325345699,1714745472705,-1307.73,0.00044109,31]
[325345700,1714745472715,-538.03,0.00044109,31]
[325345701,1714745472724,-973.73,0.00044109,31]
[325345702,1714745472734,-1601.46,0.00044109,31]
[325345703,1714745472744,-500.0,0.00044109,31]
[325345704,1714745472754,-500.0,0.00044109,31]
[325345705,1714745472763,-1260.69,0.00044109,31]
[325345706,1714745472772,-560.06972631,0.00044109,31]
[325345707,1714745472782,-1267.97,0.00044109,31]
[325345708,1714745472792,-2669.79,0.00044109,31]
[325345709,1714745472802,-500.0,0.00044109,31]
[325345710,1714745472812,-500.0,0.00044109,31]
[325345711,1714745472822,-182.049985,0.00044109,14]
[325345712,1714745472832,-500.0,0.00044109,31]
[325345713,1714745472841,-500.0,0.00044109,31]
[325345714,1714745472850,-781.08,0.00044109,31]
[325345715,1714745472860,-792.07,0.00044109,31]
[325345716,1714745472874,-1232.68,0.00044109,31]
[325345717,1714745472884,-500.0,0.00044109,31]
[325345718,1714745472894,-182.049985,0.00044109,14]
[325345719,1714745472903,-570.38,0.00044109,31]
[325345720,1714745472916,-366.924811,0.00044109,14]
[325345721,1714745472928,-500.0,0.00044109,31]
[325345722,1714745472937,-1861.73,0.00044109,31]
[325345723,1714745472946,-500.0,0.00044109,31]
[325345724,1714745472956,-500.0,0.00044109,31]
[325345725,1714745472966,-709.73,0.00044109,31]
[325345726,1714745472975,-1831.42,0.00044109,31]
[325345727,1714745472984,-1008.86,0.00044109,31]
[325345728,1714745472994,-366.924811,0.00044109,14]
[325345729,1714745473004,-500.0,0.00044109,31]
[325345730,1714745473013,-561.56,0.00044109,31]
[325345731,1714745473022,-1683.7,0.00044109,31]
[325345732,1714745473032,-500.0,0.00044109,31]
[325345733,1714745473041,-500.0,0.00044109,31]
[325345734,1714745473050,-623.99,0.00044109,31]
[325345735,1714745473060,-500.0,0.00044109,31]
[325345736,1714745473070,-1456.68,0.00044109,31]
[325345737,1714745473079,-504.37003944,0.00044109,31]
[325345738,1714745473088,-3671.52,0.00044109,31]
[325345739,1714745473098,-500.0,0.00044109,31]
[325345740,1714745473107,-151.0,0.00044109,14]
[325345741,1714745473117,-151.0,0.00044109,14]
[325345742,1714745473127,-517.1097374,0.00044109,31]
[325345743,1714745473139,-3261.83,0.00044109,31]
[325345744,1714745473148,-500.0,0.00044109,31]
[325345745,1714745473158,-751.94,0.00044109,31]
[325345746,1714745473167,-500.0,0.00044109,31]
[325345747,1714745473177,-500.0,0.00044109,31]
[325345748,1714745473187,-500.0,0.00044109,31]
[325345749,1714745473196,-759.84,0.00044109,31]
[325345750,1714745473206,-838.05,0.00044109,31]
[325345751,1714745473216,-500.0,0.00044109,31]
[325345752,1714745473226,-500.0,0.00044109,31]
[325345753,1714745473236,-903.94,0.00044109,31]
[325345754,1714745473246,-151.0,0.00044109,14]
[325345755,1714745473257,-1526.59,0.00044109,31]
[325345756,1714745473267,-1123.13,0.00044109,31]
[325345757,1714745473276,-1011.36,0.00044109,31]
[325345758,1714745473286,-500.0,0.00044109,31]
[325345759,1714745473295,-151.0,0.00044109,14]
[325345760,1714745473304,-500.0,0.00044109,31]
[325345761,1714745473313,-661.72,0.00044109,31]
[325345762,1714745473323,-503.42453563,0.00044109,31]
[325345763,1714745473333,-622.65,0.00044109,31]
[325345764,1714745473343,-500.0,0.00044109,31]
[325345765,1714745473352,-500.0,0.00044109,31]
[325345766,1714745473361,-1141.58,0.00044109,31]
[325345767,1714745473371,-1707.29,0.00044109,31]
[325345768,1714745473381,-500.0,0.00044109,31]
[325345769,1714745473393,-1535.26,0.00044109,31]
[325345770,1714745473402,-500.0,0.00044109,31]
[325345771,1714745473412,-500.0,0.00044109,31]
[325345772,1714745473423,-3414.87,0.00044109,31]
[325345773,1714745473432,-500.0,0.00044109,31]
[325345774,1714745473441,-500.0,0.00044109,31]
[325345775,1714745473452,-500.0,0.00044109,31]
[325345776,1714745473462,-500.0,0.00044109,31]
[325345777,1714745473471,-1980.36,0.00044109,31]
[325345778,1714745473481,-1244.73,0.00044109,31]
[325345779,1714745473491,-604.32,0.00044109,31]
[325345780,1714745473501,-1736.71,0.00044109,31]
[325345781,1714745473512,-2216.36,0.00044109,31]
[325345782,1714745473521,-1140.69,0.00044109,31]
[325345783,1714745473531,-2057.37,0.00044109,31]
[325345784,1714745473541,-500.0,0.00044109,31]
[325345785,1714745473550,-500.0,0.00044109,31]
[325345786,1714745473560,-1941.96,0.00044109,31]
[325345787,1714745473569,-7589.49,0.00044109,31]
[325345788,1714745473579,-500.0,0.00044109,31]
[325345789,1714745473668,-856.861279,0.00044109,14]
[325345790,1714745473678,-514.34,0.00044109,31]
[325345791,1714745473688,-504.24215671,0.00044109,31]
[325345792,1714745473697,-500.96,0.00044109,31]
[325345793,1714745473707,-500.0,0.00044109,31]
[325345794,1714745473716,-1529.05,0.00044109,31]
[325345795,1714745473725,-856.861279,0.00044109,14]
[325345796,1714745473735,-500.0,0.00044109,31]
[325345797,1714745473744,-500.0,0.00044109,31]